Cogmind - Beta 15 @@@ ROGUE MODE // 2025.07.23 @ 23:52:51 Player: Florist Result: Destroyed by G-34 Mercenary with Small Laser Performance ------------- Evolutions (0) 0 Regions Visited (2) 400 Robots Destroyed (39) 195 Value Destroyed (866) 866 Prototype IDs (3) 60 Alien Tech Used (0) 0 Bonus (0) 0 TOTAL SCORE: 1521 Bonus ------- None Cogmind --------- Core Integrity 0/250 Matter 289/300 Energy 260/280 System Corruption 0% Temperature Cool (6) Movement Treading (240) Ox1 Location -10/Mines Parts ------- > --- POWER (1) -------- Cooled Ion Engine > --- PROPULSION (2) --- Light Treads Light Treads > --- UTILITY (2) ------ High-capacity Storage Unit > --- WEAPON (2) ------- Light Assault Rifle Grenade Launcher > --- INVENTORY (20) --- Light Ion Engine Light Treads Light Treads Light Treads Light Treads Wheel Compact Wheel Heat Sink Small Storage Unit Seismic Detector Light Assault Rifle Grenade Launcher Grenade Launcher EMP Trap EMP Trap EMP Trap Peak State ------------ > --- POWER ------------ Cooled Ion Engine > --- PROPULSION ------- Light Treads Light Treads > --- UTILITY ---------- High-capacity Storage Unit Seismic Detector > --- WEAPON ----------- Improved EM Shotgun Improved EM Shotgun > --- INVENTORY -------- Ion Engine Cooled Ion Engine Wheel Compact Wheel Small Storage Unit Seismic Detector Assault Rifle Light Assault Rifle Light Assault Rifle Light Assault Rifle [Rating: 14] Favorites ----------- Power Cooled Ion Engine Engine Cooled Ion Engine Propulsion Light Treads Treads Light Treads Utility Seismic Detector Device Seismic Detector Storage High-capacity Storage Unit Weapon Improved EM Shotgun Energy Gun Improved EM Shotgun Ballistic Gun Assault Rifle Launcher Grenade Launcher Build | -11 -10 -10 ------- Run | Yrd Mat Min Slots Evolved . | . . . Power . | . . . Propulsion . | . . . Utility . | . . . Weapon . | . . . Parts Attached 17 | 7 5 5 Power 2 | 1 1 . Engine 2 | 1 1 . Core . | . . . Reactor . | . . . Propulsion 4 | 2 . 2 Treads 4 | 2 . 2 Leg . | . . . Wheel . | . . . Hover . | . . . Flight . | . . . Utility 3 | 2 1 . Device 1 | 1 . . Storage 2 | 1 1 . Processor . | . . . Hackware . | . . . Protection . | . . . Artifact . | . . . Weapon 8 | 2 3 3 Energy Gun 3 | . 3 . Energy Cannon . | . . . Ballistic Gun 3 | 2 . 1 Ballistic Cannon . | . . . Launcher 2 | . . 2 Special Weapon . | . . . Impact Weapon . | . . . Slashing Weapon . | . . . Piercing Weapon . | . . . Special Melee Weapon . | . . . Unidentified Prototypes 3 | . 3 . Parts Lost 7 | . . 7 Power . | . . . Propulsion 2 | . . 2 Utility 1 | . . 1 Weapon 4 | . . 4 Highest Loss Streak 3 | . . 3 To Critical Strikes . | . . . Average Backups 13 | 2 11 16 Power . | . . 1 Propulsion 5 | 1 3 7 Utility 1 | . 1 2 Weapon 5 | . 5 5 Tool/Special . | . . . Unused Backups 12 | . 2 10 Power 2 | . 2 . Propulsion 6 | . . 6 Utility 2 | . . 2 Weapon 2 | . . 2 Tool/Special . | . . . Average Slot Usage (%) 98 | . 99 96 Engine 14 | . 14 14 Treads 27 | . 28 27 Device 13 | . 14 12 Storage 14 | . 14 14 Energy Gun 15 | . 25 4 Ballistic Gun 4 | . 2 6 Launcher 7 | . . 15 Peak Build Rating 14 | 7 14 14 Average Rating 11 | 5 13 11 On Entrance 7 | . 7 14 Naked Turns . | . . . Heaviest Build 55 | 12 55 55 Greatest Support 40 | 40 40 40 Greatest Overweight (x) 2 | . 1 2 Average Overweight (x) . | . . 1 Largest Inventory Capacity 20 | 8 20 20 Average Capacity 18 | 7 18 20 Most Carried 20 | 5 18 20 Average Carried 14 | 2 11 19 Final Capacity 20 | 8 20 20 Final Carried 18 | 5 18 16 Class Distribution -------------------- 100% | Mutant Dominant Class ---------------- Mutant | -10/Materials Mutant | -10/Mines Resources | -11 -10 -10 ----------- Run | Yrd Mat Min Matter Collected 561 | 275 95 191 Remotely . | . . . Salvage Created 1320 | 108 562 650 Parts 88 | 10 41 37 Haulers Intercepted 2 | . 2 . Recyclers Shooed . | . . . Parts Field Recycled . | . . . Retrieved Matter . | . . . Parts Self-Destructed . | . . . Prevented . | . . . Kills | -11 -10 -10 ------- Run | Yrd Mat Min Combat Hostiles Destroyed 29 | . 12 17 Guns 26 | . 12 14 AOE 3 | . . 3 Classes Destroyed 8 | 1 6 1 Worker 1 | . 1 . Tunneler 4 | 4 . . Hauler 2 | . 2 . Operator 1 | . 1 . Watcher 3 | . 3 . Swarmer 9 | . 8 1 Grunt 19 | . 4 15 Assembled 1 | . . 1 Best Kill Streak 6 | 4 4 6 Combat Bots Only 6 | . 3 6 Max Kills in Single Turn 2 | 1 2 2 Gunslinging 1 | . 1 1 Exploded 2 | . . 2 Melee . | . . . Uniques/NPCs Destroyed . | . . . Combat | -11 -10 -10 -------- Run | Yrd Mat Min Hostile Shots Fired 123 | . 31 92 Missed 26 | . 9 17 Hits 97 | . 22 75 Projectile 97 | . 22 75 Critical Strikes 1 | . . 1 Damage Taken 1103 | . 228 875 Core 254 | . 40 214 Absorbed by Shields . | . . . Core Remaining (%) 100 | 100 . . Volleys Fired 74 | 7 30 37 Largest 2 | 2 2 2 Hottest 90 | 40 90 90 Shots Fired 144 | 14 60 70 Gun 144 | 14 60 70 Cannon . | . . . Launcher . | . . . Special . | . . . Kinetic 75 | 14 6 55 Thermal . | . . . Explosive . | . . . Electromagnetic 69 | . 54 15 Robot Hit Streak 9 | 3 9 9 Robot Miss Streak 7 | 1 7 2 Penetration Max . | . . . Secondary Targets 4 | . 2 2 Max Gunslinging Chain 1 | . 1 1 Shots Hit Robots 102 | 7 39 56 Core Hits 58 | 4 24 30 Critical Kills . | . . . Critical Parts Destroyed . | . . . Critical Strikes . | . . . Melee Attacks . | . . . Impact . | . . . Slashing . | . . . Piercing . | . . . Sneak Attacks . | . . . Combat Hostiles . | . . . Follow-up Attacks . | . . . Damage Inflicted 1670 | 78 670 922 Guns 1509 | 78 648 783 Cannons . | . . . Explosions 161 | . 22 139 Melee . | . . . Ramming . | . . . Kinetic 609 | 78 41 490 Thermal 161 | . 22 139 Explosive . | . . . Electromagnetic 900 | . 607 293 Impact . | . . . Slashing . | . . . Piercing . | . . . Highest Corruption . | . . . Average Corruption . | . . . Corruption Purged . | . . . Corruption Blocked . | . . . Overload Shots . | . . . Overflow Damage . | . . . Projectiles . | . . . Explosions . | . . . Melee . | . . . Knockbacks . | . . . Impact . | . . . Kinetic . | . . . Secondary . | . . . Self-Inflicted Damage 104 | . 34 70 Shots 3 | . 1 2 Rammed . | . . . Targets Rammed . | . . . Kicked . | . . . Crushed . | . . . Highest Temperature 150 | . 150 78 Average Temperature 34 | . 42 23 Received Heat Transfer 438 | . 36 402 Siege Activations . | . . . Martial Activations . | . . . Shielding Activations . | . . . Robots Disrupted 1 | . . 1 Combat Hostiles 1 | . . 1 Robots Corrupted 1 | . 1 . Combat Hostiles . | . . . Parts Fried 3 | . 2 1 Impact Corruptions . | . . . Robots Melted . | . . . Combat Hostiles . | . . . Parts Melted . | . . . Heat Transferred 200 | . 50 150 Parts Sabotaged . | . . . Parts Stolen . | . . . Parts Stripped . | . . . Power Chain Reactions 3 | . 1 2 Alert | -11 -10 -10 ------- Run | Yrd Mat Min Maximum Alert Level . | . . . Low Security (%) 100 | 100 100 100 Level 1 . | . . . Level 2 . | . . . Level 3 . | . . . Level 4 . | . . . Level 5 . | . . . High Security . | . . . Max Security . | . . . Peak Influence 175 | 10 119 175 Initial 8 | . . 8 Average 33 | 1 40 27 Influence Increases 780 | 20 417 343 Destroy 0b10 Robot/C 560 | . 240 320 Destroy 0b10 Robot/NC 55 | 20 35 . Destroy Leader 60 | . 50 10 Successful Hack 29 | . 29 . Disable Machine 30 | . 30 . Destroy Structure 16 | . 3 13 Lose Combat Pursuer 30 | . 30 . Influence Decreases 619 | 20 395 204 Entered New Map 14 | . . 14 Time Decay 535 | 20 395 120 Lost Part 70 | . . 70 Squads Dispatched 1 | . 1 . Investigation . | . . . Extermination . | . . . Reinforcement 1 | . 1 . Assault . | . . . Garrison . | . . . Intercept . | . . . Searches Triggered . | . . . Construction Impeded . | . . . Haulers Reinforced . | . . . Active Scanning Responses . | . . . Cargo Convoy Interrupts . | . . . Stealth | -11 -10 -10 --------- Run | Yrd Mat Min Distress Signals 2 | . 2 . Communications Jammed . | . . . Distress Signals . | . . . Times Spotted 41 | . 20 21 Peak Tracking Total 7 | . 4 7 Tactical Retreats 2 | . 2 . Traps | -11 -10 -10 ------- Run | Yrd Mat Min Traps Triggered . | . . . Indirectly . | . . . Trap Hack Attempts . | . . . Triggered . | . . . Disarmed . | . . . Reprogrammed . | . . . Reused . | . . . Traps Extracted . | . . . Installed . | . . . Triggered . | . . . Most Traps Carried 3 | . . 3 Machines | -11 -10 -10 ---------- Run | Yrd Mat Min Machines Disabled 2 | . 2 . Max in Single Turn 1 | . 1 . Machines Repaired . | . . . Machines Dismantled . | . . . Machines Sabotaged . | . . . Overloaded Fab Kills . | . . . Hacking | -11 -10 -10 --------- Run | Yrd Mat Min Machines Accessed 7 | . 7 . Terminals 6 | . 6 . Fabricators . | . . . Repair Stations . | . . . Recycling Units 1 | . 1 . Scanalyzers . | . . . Garrison Access . | . . . Total Hacks 26 | . 26 . Successful 13 | . 13 . Failed 12 | . 12 . Catastrophic . | . . . Database Lockouts 1 | . 1 . Manual 24 | . 24 . Terminals 24 | . 24 . Fabricators . | . . . Repair Stations . | . . . Recycling Units 2 | . 2 . Scanalyzers . | . . . Garrison Access . | . . . Terminal Hacks 2 | . 2 . Robot Analysis 1 | . 1 . Locate Traps 1 | . 1 . Fabricator Hacks . | . . . Repair Station Hacks . | . . . Recycling Unit Hacks 1 | . 1 . Retrieve Components 1 | . 1 . Scanalyzer . | . . . Garrison Access Hacks . | . . . Unauthorized Hacks 10 | . 10 . Terminals 10 | . 10 . Botnet 5 | . 5 . Skim 5 | . 5 . Fabricators . | . . . Repair Stations . | . . . Recycling Units . | . . . Scanalyzers . | . . . Garrison Access . | . . . Data Cores Recovered . | . . . Used . | . . . Hacking Detections 7 | . 7 . Full Trace Events 1 | . 1 . Feedback Events . | . . . Feedback Blocked . | . . . Robot Schematics Acquired . | . . . Robots Built . | . . . Authchips . | . . . Time . | . . . Total Robot Build Rating . | . . . Part Schematics Acquired . | . . . Parts Built . | . . . Authchips . | . . . Time . | . . . Total Part Build Rating . | . . . Parts Repaired . | . . . Time . | . . . Parts Recycled . | . . . Recycled Matter . | . . . Retrieved Matter . | . . . Retrieved Components 1 | . 1 . Parts Scanalyzed . | . . . Part Schematics Acquired . | . . . Parts Damaged . | . . . Bothacking | -11 -10 -10 ------------ Run | Yrd Mat Min Used RIF Installer . | . . . Robots Hacked . | . . . Non-combat . | . . . Combat . | . . . Robot Hacks Applied . | . . . Relay Couplers Released . | . . . Fabnet Peak Effective % . | . . . Robots Rewired . | . . . Allies Hacked . | . . . Hacks Repelled . | . . . Allies | -11 -10 -10 -------- Run | Yrd Mat Min Total Allies . | . . . Largest Group . | . . . Highest-Rated Group . | . . . Highest-Rated Ally . | . . . Total Orders . | . . . Ally Attacks . | . . . Total Damage . | . . . Kills . | . . . Allies Corrupted . | . . . Allies Melted . | . . . Intel | -11 -10 -10 ------- Run | Yrd Mat Min Active Infowar (turns) 2827 | 19 1556 1252 Seismic 2827 | 19 1556 1252 Robot Analysis Total 1 | . 1 . Derelict Logs Recovered . | . . . Drone Launches . | . . . Drone Recoveries . | . . . Exploration | -11 -10 -10 ------------- Run | Yrd Mat Min Turns Passed 3069 | 135 1556 1378 Spaces Moved 766 | 65 520 181 Core 3 | 3 . . Treads 763 | 62 520 181 Legs . | . . . Wheels . | . . . Hover . | . . . Flight . | . . . Fastest Speed 50 | 50 160 240 Average Speed 225 | 154 228 240 Slowest Speed 320 | 160 240 320 Overloaded Moves . | . . . Propulsion Burnouts . | . . . Robots Hopped . | . . . Potential Cave-ins . | . . . Cave-ins Triggered . | . . . Exploration Rate (%) 44 | 5 90 37 Regions Visited 2 Branch Regions 1 Pre-discovered Areas . | . . . Known Exits Taken 1 | . 1 . Unknown Exits Taken 1 | 1 . . Scrap Searched 1 | . . 1 Spaces Dug . | . . . Terrain Destroyed 18 | . 2 16 Melee . | . . . Projectile . | . . . AOE 18 | . 2 16 Terrain Rammed . | . . . Walls Destroyed . | . . . Machines Disabled . | . . . Actions | -11 -10 -10 --------- Run | Yrd Mat Min Total 1967 | 83 828 1056 Wait 1061 | . 250 811 Move 764 | 64 519 181 Hop . | . . . Pick Up 25 | 5 16 4 Fast Attach 10 | 7 3 . Attach 7 | . 1 6 Detach 1 | . 1 . Swap 7 | . 2 5 Drop 6 | . 6 . Fire 74 | 7 30 37 Melee . | . . . Ram . | . . . Kick . | . . . Crush . | . . . Escape Stasis . | . . . Rewire 12 | . . 12 Trap . | . . . Miscellaneous . | . . . Route ------- -11/Scrapyard -10/Materials (discovered 6 exits: *Mat x3 / *Min x2 / *Sub) -10/Mines (discovered 2 exits: Mat / Sub) History --------- Turn | Location | Event 17 | -11/Scrapyard | Discovered new exit (range 13) 136 | -11/Scrapyard | Entered Materials 335 | -10/Materials | Build established: Mutant 594 | -10/Materials | Discovered new exit (range 9) 786 | -10/Materials | Central database locked down 850 | -10/Materials | Discovered new exit (range 13) 1254 | -10/Materials | Discovered new exit (range 9) 1305 | -10/Materials | Learned location of 2 exits from Mines 1339 | -10/Materials | Learned 4 Subcaves zone layouts 1347 | -10/Materials | Discovered new exit (range 13) 1362 | -10/Materials | Learned location of 2 exits from Subcaves 1374 | -10/Materials | Identified exit to Mines 1378 | -10/Materials | Learned Storage trap positions 1379 | -10/Materials | Learned 4 Recycling zone layouts 1380 | -10/Materials | Identified exit to Subcaves 1380 | -10/Materials | Identified exit to Materials 1388 | -10/Materials | Learned Storage trap positions 1404 | -10/Materials | Learned location of 3 exits from Materials 1692 | -10/Materials | Entered Mines 1832 | -10/Mines | Found a hidden stash of uninstalled traps 1968 | -10/Mines | Excavation squad dispatched 1968 | -10/Mines | A large section of the Mines collapsed 2218 | -10/Mines | Excavation squad dispatched 2468 | -10/Mines | Excavation squad dispatched 2718 | -10/Mines | Excavation squad dispatched 2833 | -10/Mines | Core integrity fell below 50% 2850 | -10/Mines | Core integrity fell below 20% 2884 | -10/Mines | Lost 3 parts (1n2w) 2968 | -10/Mines | Excavation squad dispatched 3070 | -10/Mines | Destroyed by G-34 Mercenary with Small Laser Last Messages --------------- 02886_ K-01 Serf collects debris. 02944_ Seismic Detector destroyed. 02947_ G-34 Mercenary destroyed. 02952_ Acquired 29 matter. 02957_ Acquired Heat Sink. 02966_ U-05 Engineer builds a Wall. 02968_ ALERT: Derelict activity in mines confirmed. Dispatching additional escorted excavation squad. 02985_ K-01 Serf collects debris. 02996_ S-10 Pest destroyed. 03001_ Acquired 4 matter. 03016_ G-34 Mercenary destroyed. 03019_ Acquired 12 matter. 03039_ Lgt. Treads destroyed. 03045_ G-34 Mercenary destroyed. 03045_ K-01 Serf collects debris. 03048_ Acquired 25 matter. 03056_ K-01 Serf collects debris. 03066_ Assault Rifle destroyed. 03067_ K-01 Serf collects debris. Map ----- +----------------------------------------------------+ | ?????????????????????????????????????????????????? | | ?????????????????????????????????????????????????? | | ?????????????????????????????????????????????????? | | ?????????????????????????????????????????????????? | | ?????????????????????????????????????????????????? | | ?????????????????????????????????????????????????? | | ?????????????????????????????????????????????????? | | ?????????????????????????????????????????????????? | | ?????????????????????????????????????????????????? | | ?????????????????????????????????????????????????? | | ?????????????????????????????????????????????????? | | ???????????????????????????????????????###???????? | | ??????????????????????????????????????## ##?###??? | | ??????????????????????????????????????# ## ##?? | | ?????????????????????????????????????## #?? | | ????????????????????????????????????## #?? | | ??????????????????????????????####??# #?? | | ????????????????????????????### ##?# ##? | | ???????????????????????????## #?# #? | | ??????????????????????????## #?# ## ##? | | ??????????????????????##### #?# #???#?? | | ?????????????????????## #??# ###???? | | ?????????????????????# k* #??# ###?? | | ??????? ????????????# =%[ ##?## ##? | | ???????? ??????????## =### ##?### = #? | | ?????????# ?????????# @##?## ###?##%* ## | | ??????????# ???????# ##??## ####= # | | ?????????## ????## ##??## ## # | | ?????????# ### ##??### # | | ?????????# ggg ######## ## | | ??????????# ## = ### ######? | | ?????????????????## #?### #####???? | | ??????????????????### # ######= #???# #!=%#???? | | ????????????????????#####t #????#%=#####!#%%*##??? | | ????????????????????????? #??### =%* =*#??? | | ????????????????????????? #?## %#######*%[[#??? | | ????????????????????????# #?# ###??#%#%!%#??? | | ????????????????????????# ### ##?##![![##?? | | ????????????????????????# ! #?# *== #?? | | ????????????????????????# %% #?# == #?? | | ????????????????????????#######= ##?# !% #?? | | ??????????????????????????????# ##??## = #?? | | ??????????????????????????????# ##???## ##"#? | | ??????????????????????????????# #????#### ##? | | ??????????????????????????????# #?????## ##? | | ?????????????????????????###### #???????###?? | | ????????????????????????## ## ##??????????? | | ???????????????????????## #??????????? | | ???????????????????????# #??????????? | | ???????????????????????# ### ############ | +----------------------------------------------------+ Best States ------------- Heat Dissipation 25 Energy Generation 14 Energy Capacity 280 Matter Stores 300 Matter Capacity 300 Sight Range 16 Terrain Scan Density 10 Evasion (%) 40 Recoil Reduction 2 Item Schematics ----------------- None Robot Schematics ------------------ None Fabricated ------------ Nothing Repaired ---------- Nothing Alien Tech Used ----------------- None Achievements -------------- None Challenges ------------ None Game ------ Seed MasterProjectileConstruct Manual? 0 Play Time 00:12:14 Cumulative 201.0 hours Start 2025.07.23 @ 23:43:53 End 2025.07.23 @ 23:52:51 Sessions 1 Manual Loads 0 Difficulty Rogue Special Mode None Game No. 178 Rogue 178 Adventurer 0 Explorer 0 Win Type - Total 11 Types 5/0/4/2/0/0/0/0/0/0 Lore% 74 Gallery% 70 Achievement% 66 Wizard Run 0 Options --------- Layout 1 ASCII 0 Keyboard 0 Movement Numpad Keybinds 0 Fullscreen 1 Font 32/SmallcapsGlow Map View 77x35 Zoom Use 0% Tactical HUD 1 Map Filters NONE Filters NONE Steam 1 RUN: 4d789ed4-a890-404c-8cac-ab724b94e828